bitfinex/quotes_BTCUSD_20250314
["timestamp","ask_amount","ask_price","bid_price","bid_amount"]
[1741995677475,1.56219092,84336.0,84335.0,0.39382874]
[1741995678343,1.56219092,84336.0,84322.0,0.0001695]
[1741995678344,0.311859,84323.0,84322.0,0.0001695]
[1741995678562,0.311859,84323.0,84309.0,0.23722]
[1741995678563,0.31186,84316.0,84309.0,0.23722]
[1741995678778,0.54907,84314.0,84308.0,0.39382874]
[1741995678975,0.3,84312.0,84308.0,0.39382874]
[1741995679187,0.596991,84312.0,84308.0,0.39382874]
[1741995679386,0.61081684,84312.0,84308.0,0.39382874]
[1741995679611,0.62941485,84312.0,84309.0,0.23722]
[1741995679853,0.62982915,84312.0,84311.0,0.238016]
[1741995680425,0.62982915,84312.0,84311.0,0.35759103]
[1741995680631,0.03283815,84312.0,84311.0,0.36945103]
[1741995680801,0.03283815,84312.0,84311.0,0.38399188]
[1741995680997,0.01901231,84312.0,84311.0,0.38399188]
[1741995681619,0.01901231,84312.0,84311.0,0.26441685]
[1741995682039,0.01901231,84312.0,84311.0,0.65824559]
[1741995682498,0.01901231,84312.0,84311.0,0.65841519]
[1741995682998,0.04821231,84312.0,84311.0,0.74361519]
[1741995683421,0.0292,84312.0,84311.0,0.74361519]
[1741995683637,0.26354791,84330.0,84329.0,0.249024]
[1741995683834,0.26354791,84339.0,84333.0,0.237152]
[1741995684045,0.665508,84338.0,84333.0,0.237152]
[1741995684258,0.3,84336.0,84334.0,0.237152]
[1741995684459,0.3,84336.0,84332.0,0.237152]
[1741995685217,0.34257564,84338.0,84332.0,0.237152]
[1741995685425,0.3,84336.0,84332.0,0.237152]
[1741995685737,0.3,84336.0,84333.0,0.237152]
[1741995685899,0.3,84336.0,84333.0,0.237153]
[1741995686345,0.237169,84328.0,84312.0,0.34561643]
[1741995686544,0.33071864,84338.0,84321.0,0.25172885]
[1741995686545,0.3,84322.0,84321.0,0.25172885]
[1741995687307,0.3,84322.0,84321.0,0.26358785]
[1741995687528,0.3,84329.0,84328.0,0.237167]
[1741995687753,1.020683,84329.0,84328.0,0.237167]
[1741995688189,0.3,84328.0,84327.0,0.34561643]
[1741995688385,0.637878,84328.0,84327.0,0.34561643]
[1741995690504,0.649736,84328.0,84327.0,0.34561643]
[1741995690925,0.6683338,84328.0,84327.0,0.34561643]
[1741995691128,0.3,84319.0,84316.0,0.34561643]
[1741995691331,0.3,84317.0,84316.0,0.34561643]
[1741995691632,1.3,84317.0,84316.0,0.34561643]
[1741995691833,1.54906,84317.0,84316.0,0.34561643]
[1741995692251,1.56766073,84317.0,84316.0,0.34561643]
[1741995693347,0.3,84312.0,84311.0,0.00101107]
[1741995693673,1.31186,84312.0,84311.0,0.00101107]
[1741995694079,1.32471457,84312.0,84311.0,0.00101107]
[1741995695656,1.31285457,84312.0,84311.0,0.00101107]
[1741995696593,1.32471457,84312.0,84311.0,0.00101107]
[1741995698970,1.31285457,84312.0,84311.0,0.00101107]
[1741995699131,0.56199057,84312.0,84311.0,0.00101107]
[1741995699528,0.26199057,84312.0,84311.0,0.00101107]
[1741995700471,0.14378657,84312.0,84311.0,0.00101107]
[1741995700628,0.01285457,84312.0,84311.0,0.01287107]
[1741995700833,0.01285457,84312.0,84311.0,0.02741192]
[1741995701030,0.26354791,84325.0,84324.0,0.23718]
[1741995701267,0.26354791,84325.0,84324.0,0.0249039]
[1741995701268,0.291484,84325.0,84324.0,0.0249039]
[1741995701494,0.2372,84317.0,84315.0,0.13424]
[1741995701697,0.01186,84315.0,84311.0,0.00101107]
[1741995701871,0.3,84313.0,84311.0,0.00101107]
[1741995702092,0.97749659,84312.0,84311.0,0.00101107]
[1741995702356,0.96468059,84312.0,84311.0,0.00101107]
[1741995702741,1.20189459,84312.0,84311.0,0.00101107]
[1741995702947,0.96468059,84312.0,84311.0,0.00101107]
[1741995703725,0.97654059,84312.0,84311.0,0.00101107]
[1741995703910,0.99514163,84312.0,84311.0,0.00101107]
[1741995705683,0.97654059,84312.0,84311.0,0.00101107]
[1741995708444,0.99514364,84312.0,84311.0,0.00101107]
[1741995708891,0.68003008,84312.0,84311.0,0.00101107]
[1741995709052,0.70244654,84312.0,84311.0,0.00101107]
[1741995710169,0.70244654,84312.0,84300.0,0.0005]
[1741995710170,0.011862,84301.0,84300.0,0.0005]
[1741995710368,1.249107,84301.0,84300.0,0.0009143]
[1741995710957,0.537261,84295.0,84294.0,0.00054149]
[1741995711158,1.3,84295.0,84294.0,0.00054149]
[1741995712616,1.30065888,84295.0,84294.0,0.00054149]
[1741995713398,1.31252188,84295.0,84294.0,0.00054149]
[1741995715818,0.31252188,84295.0,84294.0,0.00054149]
[1741995716024,1.31252188,84295.0,84294.0,0.00054149]
[1741995716913,1.31252188,84295.0,84294.0,0.00071109]
[1741995720058,1.30065888,84295.0,84294.0,0.00071109]
[1741995720273,1.43541288,84295.0,84294.0,0.00071109]
[1741995723988,1.44903582,84295.0,84294.0,0.00071109]
[1741995726157,1.44903582,84295.0,84294.0,0.05071109]
[1741995731903,0.56340582,84295.0,84294.0,0.05071109]
[1741995732404,0.25662121,84295.0,84294.0,0.05071109]
[1741995732611,1.25662121,84295.0,84294.0,0.05071109]
[1741995733631,1.25662121,84295.0,84294.0,0.07952705]
[1741995734355,1.55662121,84295.0,84294.0,0.07952705]
[1741995734549,1.55662121,84295.0,84294.0,0.05071109]
[1741995736134,1.31408768,84295.0,84294.0,0.05071109]
[1741995736333,0.54823568,84295.0,84294.0,0.06257409]
[1741995737202,0.50910568,84295.0,84294.0,0.06257409]
[1741995737400,0.50910568,84295.0,84294.0,0.16812585]
[1741995737773,0.50910568,84295.0,84294.0,0.51374228]
[1741995737982,0.44617868,84295.0,84294.0,0.51374228]
[1741995740109,0.53020368,84295.0,84294.0,0.51374228]
[1741995740518,0.53020368,84295.0,84294.0,0.50187928]
[1741995740781,0.31408768,84295.0,84294.0,0.39632752]
[1741995740953,0.33269118,84295.0,84294.0,0.39632752]
[1741995741325,0.33269118,84295.0,84294.0,0.3150832]
[1741995741527,0.33303018,84295.0,84294.0,0.3150832]
[1741995741744,0.66812118,84295.0,84294.0,0.43465823]
[1741995741944,0.54934618,84295.0,84294.0,0.43465823]
[1741995744615,0.54934618,84295.0,84294.0,0.3150832]
[1741995745769,0.33303018,84295.0,84294.0,0.3150832]
[1741995745965,0.33303018,84295.0,84294.0,0.34148705]
[1741995746284,0.01442668,84295.0,84294.0,0.41808705]
[1741995746756,0.000339,84295.0,84294.0,0.41808705]
[1741995746962,0.000339,84295.0,84294.0,0.53766208]
[1741995748481,0.000339,84295.0,84294.0,0.54266208]
[1741995749307,0.01894058,84295.0,84294.0,0.54266208]
[1741995750416,0.0003394,84300.0,84299.0,0.39865285]
[1741995750953,0.01893909,84300.0,84299.0,0.39865285]
[1741995751424,0.02390557,84322.0,84299.0,0.39865285]
[1741995751425,0.26354791,84330.0,84311.0,0.14186]
[1741995751581,0.3,84329.0,84311.0,0.5284826]
[1741995751818,0.3,84329.0,84311.0,0.60673951]
[1741995752842,0.3,84320.0,84311.0,0.60673951]
[1741995754079,0.01893811,84312.0,84311.0,0.60673951]
[1741995754617,0.01893811,84312.0,84311.0,0.39765866]
[1741995754827,0.3,84304.0,84302.0,0.13368]
[1741995755030,1.249306,84303.0,84302.0,0.13368]
[1741995755257,1.23760229,84303.0,84302.0,0.13368]
[1741995755479,1.10338729,84303.0,84302.0,0.13368]
[1741995755655,1.08595429,84303.0,84302.0,0.13368]
[1741995755865,1.01769229,84303.0,84302.0,0.13368]
[1741995756176,0.93200129,84303.0,84302.0,0.13368]
[1741995756434,0.85344429,84303.0,84302.0,0.13368]
[1741995756631,0.54162933,84303.0,84302.0,0.25211476]
[1741995756761,0.11211551,84303.0,84302.0,0.26397676]
[1741995756980,0.102337,84303.0,84302.0,0.26397676]
[1741995757177,0.26388711,84312.0,84311.0,0.237216]
[1741995757376,0.12683437,84312.0,84311.0,0.2853733]
[1741995757630,0.0003392,84312.0,84311.0,0.2853733]
[1741995757776,0.0003392,84312.0,84311.0,0.2972333]
[1741995758004,0.1022632,84312.0,84311.0,0.2853733]
[1741995758350,0.1616822,84312.0,84311.0,0.2853733]
[1741995758558,0.4617022,84312.0,84311.0,0.2853733]
[1741995758857,0.47113639,84312.0,84311.0,0.2853733]
[1741995759349,0.47113639,84312.0,84311.0,0.0481573]
[1741995762268,0.48299639,84312.0,84311.0,0.0481573]
[1741995762470,0.72021039,84312.0,84311.0,0.0481573]
[1741995763007,0.72010924,84312.0,84311.0,0.0481573]
[1741995763637,0.3,84311.0,84310.0,0.3150832]
[1741995763811,1.081283,84311.0,84310.0,0.3150832]
[1741995764109,0.95158548,84311.0,84310.0,0.3150832]
[1741995764332,0.96060709,84311.0,84310.0,0.3150832]
[1741995765513,1.20968309,84311.0,84310.0,0.28344401]
[1741995766057,1.20968309,84311.0,84310.0,0.30360842]
[1741995766845,1.20968309,84311.0,84310.0,0.28344401]
[1741995768609,1.22828572,84311.0,84310.0,0.28344401]
[1741995768806,0.57700272,84311.0,84310.0,0.28344401]
[1741995769009,1.57700272,84311.0,84310.0,0.28344401]
[1741995770271,0.3,84304.0,84300.0,0.52068901]
[1741995770447,0.3,84302.0,84301.0,0.237242]
[1741995770749,0.633393,84302.0,84300.0,0.52068901]
[1741995770945,0.79763,84301.0,84300.0,0.39757325]
[1741995771174,0.727307,84301.0,84300.0,0.63482025]
[1741995773412,0.727307,84301.0,84300.0,0.52069101]
[1741995774373,0.72758767,84301.0,84300.0,0.28344401]
[1741995774581,0.96483267,84301.0,84300.0,0.28344401]
[1741995775438,0.47350167,84301.0,84300.0,0.28344401]
[1741995777317,0.47350167,84301.0,84300.0,0.28361351]
[1741995778262,0.47350167,84301.0,84300.0,0.26501024]
[1741995779155,0.48232603,84301.0,84300.0,0.26501024]
[1741995779577,0.48232603,84301.0,84300.0,0.35357121]
[1741995780455,0.48232603,84301.0,84300.0,0.26501024]
[1741995781379,0.50092929,84301.0,84300.0,0.26501024]
[1741995782114,0.32770829,84301.0,84300.0,0.26501024]
[1741995782239,0.85934029,84301.0,84300.0,0.26501024]
[1741995782684,0.73122829,84301.0,84300.0,0.26501024]
[1741995782911,0.61557529,84301.0,84300.0,0.26501024]
[1741995783308,0.61557529,84301.0,84300.0,0.37848141]
[1741995783521,0.58710929,84301.0,84300.0,0.37848141]
[1741995783732,0.56342929,84301.0,84300.0,0.37848141]
[1741995783925,0.54080529,84301.0,84300.0,0.37848141]
[1741995784126,0.52633708,84301.0,84300.0,0.37848141]
[1741995784488,0.52633708,84301.0,84300.0,0.26501024]
[1741995785278,0.50773382,84301.0,84300.0,0.24640707]
[1741995788524,0.52633707,84301.0,84300.0,0.24640707]
[1741995790637,0.52667607,84301.0,84300.0,0.24640707]
[1741995794313,0.48035107,84301.0,84300.0,0.24640707]
[1741995794517,0.45455107,84301.0,84300.0,0.24640707]
[1741995794693,0.44365607,84301.0,84300.0,0.24640707]
[1741995794878,0.33701907,84301.0,84300.0,0.24640707]
[1741995795079,0.44585007,84301.0,84300.0,0.24640707]
[1741995796650,0.43702571,84301.0,84300.0,0.46634947]
[1741995796786,0.32819471,84301.0,84300.0,0.46634947]
[1741995798976,0.32819471,84301.0,84300.0,0.35240992]
[1741995802699,0.30959146,84301.0,84300.0,0.35240992]
[1741995804587,0.30959146,84301.0,84300.0,0.40100992]
[1741995805607,0.32819334,84301.0,84300.0,0.40100992]
[1741995806559,0.32819334,84301.0,84300.0,0.42328237]
[1741995806838,0.32819334,84301.0,84300.0,0.5428574]
[1741995809032,0.32819334,84301.0,84300.0,0.37468237]
[1741995809676,0.32819334,84301.0,84300.0,0.35240992]
[1741995810590,0.32819334,84301.0,84300.0,0.48576992]
[1741995812799,0.32819334,84301.0,84300.0,0.48572992]
[1741995813962,0.32819334,84301.0,84300.0,0.26094792]
[1741995814164,0.32819334,84301.0,84300.0,0.40608992]
[1741995814811,0.32819334,84301.0,84300.0,0.39422792]
[1741995815218,1.51505134,84301.0,84300.0,0.24640707]
[1741995815500,1.55869846,84301.0,84300.0,0.24640707]
[1741995816779,1.53230746,84301.0,84300.0,0.24640707]
[1741995816958,1.16819646,84301.0,84300.0,0.24640707]
[1741995818125,1.02709146,84301.0,84300.0,0.24640707]
[1741995818658,1.04569473,84301.0,84300.0,0.24640707]
[1741995820612,0.32819473,84301.0,84300.0,0.24640707]
[1741995820908,1.04569473,84301.0,84300.0,0.24640707]
[1741995823235,1.05755673,84301.0,84300.0,0.24640707]
[1741995826077,1.05763847,84301.0,84300.0,0.24640707]
[1741995828262,1.05763847,84301.0,84300.0,0.24012341]
[1741995835561,0.34013847,84301.0,84300.0,0.24012341]
[1741995835804,1.09161847,84301.0,84300.0,0.24012341]
[1741995836644,1.0730152,84301.0,84300.0,0.24012341]
[1741995837077,1.0730152,84301.0,84300.0,0.0001695]
[1741995839541,1.09162049,84301.0,84300.0,0.0001695]
[1741995849183,1.08769798,84301.0,84300.0,0.0001695]
[1741995849971,0.33621798,84301.0,84300.0,0.0001695]
[1741995850175,1.33621798,84301.0,84300.0,0.0001695]
[1741995855527,1.33617798,84301.0,84300.0,0.0001695]
[1741995864338,0.537292,84284.0,84278.0,0.0901528]
[1741995864555,0.549156,84284.0,84283.0,0.13407754]
[1741995864694,1.5545645,84284.0,84283.0,0.13407754]
[1741995865112,1.57317137,84284.0,84283.0,0.13407754]
[1741995866151,1.5849531,84284.0,84283.0,0.13407754]
[1741995867110,1.5730891,84284.0,84283.0,0.13407754]
[1741995867317,0.6852251,84284.0,84283.0,0.13407754]
[1741995867524,0.6019691,84284.0,84283.0,0.21147754]
[1741995868267,0.4480711,84284.0,84283.0,0.21147754]
[1741995869260,0.45694316,84284.0,84283.0,0.21147754]
[1741995869761,0.15694316,84284.0,84283.0,0.07781432]
[1741995870166,0.15153466,84284.0,84283.0,0.07781432]
[1741995870376,0.15664602,84284.0,84283.0,0.07781432]
[1741995870708,0.15664602,84284.0,84283.0,0.11804656]
[1741995871392,0.15153466,84284.0,84283.0,0.11804656]
[1741995871582,0.15153466,84284.0,84283.0,0.07798382]
[1741995872016,0.1569275,84284.0,84283.0,0.07798382]
[1741995872168,0.4687915,84284.0,84283.0,0.00058382]
[1741995872556,0.4687915,84284.0,84278.0,0.0127528]
[1741995872557,0.626572,84279.0,84278.0,0.00949101]
[1741995872753,0.626572,84279.0,84265.0,0.13366322]
[1741995872754,0.54921,84266.0,84265.0,0.07391179]
[1741995872959,0.54921,84266.0,84253.0,0.07391179]
[1741995872960,0.311867,84265.0,84253.0,0.07391179]
[1741995873146,1.3,84265.0,84253.0,0.07391179]
[1741995873370,1.311867,84265.0,84256.0,0.237371]
[1741995873594,1.311867,84265.0,84260.0,0.237357]
[1741995873595,1.286673,84265.0,84260.0,0.237357]
[1741995874049,0.00512969,84265.0,84261.0,0.237355]
[1741995874250,0.30512969,84265.0,84263.0,0.237351]
[1741995874436,0.3,84265.0,84263.0,0.237351]
[1741995874648,0.30535944,84265.0,84263.0,0.249218]
[1741995875009,0.30535944,84265.0,84264.0,0.0936365]
[1741995875225,0.30535944,84265.0,84264.0,0.10817735]
[1741995875429,0.30535944,84265.0,84264.0,0.19384195]
[1741995875634,0.32396944,84265.0,84264.0,0.19384195]
[1741995876382,0.32396944,84265.0,84264.0,0.09631035]
[1741995876996,0.47146744,84265.0,84264.0,0.09631035]
[1741995877229,0.47146744,84265.0,84264.0,0.0001695]
[1741995878532,0.48333444,84265.0,84264.0,0.0001695]
[1741995878738,0.46472444,84265.0,84264.0,0.0001695]
[1741995878934,0.45285744,84265.0,84264.0,0.0001695]
[1741995879904,0.70207044,84265.0,84264.0,0.0001695]
[1741995881505,0.45285744,84265.0,84264.0,0.02400312]
[1741995881799,0.45285744,84265.0,84264.0,0.0001695]
[1741995881946,0.47146896,84265.0,84264.0,0.0001695]
[1741995882448,0.70881496,84265.0,84264.0,0.0001695]
[1741995882838,0.72068196,84265.0,84264.0,0.0001695]
[1741995884759,0.32397096,84265.0,84264.0,0.0001695]
[1741995884911,0.42934696,84265.0,84264.0,0.0001695]
[1741995885706,0.42934696,84265.0,84264.0,0.08370322]
[1741995885913,0.32397096,84265.0,84264.0,0.0001695]
[1741995886147,0.51304796,84265.0,84264.0,0.0001695]
[1741995888944,0.011867,84263.0,84258.0,0.00080069]
[1741995889150,0.3,84261.0,84258.0,0.00080069]
[1741995889372,0.3,84259.0,84258.0,0.00080069]
[1741995889685,1.118957,84259.0,84258.0,0.00080069]
[1741995890476,0.878836,84259.0,84258.0,0.00080069]
[1741995890676,0.757406,84259.0,84258.0,0.00080069]
[1741995891078,0.715693,84259.0,84258.0,0.00080069]
[1741995891917,0.73430488,84259.0,84258.0,0.00080069]
[1741995892418,0.74617288,84259.0,84258.0,0.00080069]
[1741995892970,0.74638877,84259.0,84258.0,0.00080069]
[1741995893171,0.73452077,84259.0,84258.0,0.00080069]
[1741995893474,0.74638877,84259.0,84258.0,0.00080069]
[1741995894224,0.7552356,84259.0,84258.0,0.00080069]
[1741995894399,0.7552356,84259.0,84258.0,0.00097019]
[1741995894818,0.85619875,84259.0,84258.0,0.00097019]
[1741995895021,0.011869,84249.0,84248.0,0.0001696]
[1741995895348,0.96251792,84249.0,84248.0,0.0001696]
[1741995895549,0.95369192,84249.0,84248.0,0.0001696]
[1741995896221,0.95410581,84249.0,84248.0,0.0001696]
[1741995896847,0.30074581,84249.0,84248.0,0.08491202]
[1741995897044,0.30074581,84249.0,84248.0,0.0001696]
[1741995897207,0.58724781,84249.0,84248.0,0.0001696]
[1741995898032,0.60586162,84249.0,84248.0,0.0001696]
[1741995900211,0.60586162,84249.0,84248.0,0.2375636]
[1741995900628,0.48893562,84249.0,84248.0,0.2375636]
[1741995900825,0.4886037,84249.0,84248.0,0.32349242]
[1741995901032,0.45918385,84249.0,84248.0,0.32349242]
[1741995901234,0.45918385,84249.0,84248.0,0.2375636]
[1741995902401,0.4541227,84249.0,84248.0,0.2375636]
[1741995902714,0.3240441,84249.0,84248.0,0.3802326]
[1741995902986,0.32432694,84249.0,84248.0,0.3802326]
[1741995903168,0.32432694,84249.0,84248.0,0.2375636]
[1741995904542,0.32432694,84249.0,84248.0,0.2494326]
[1741995905017,0.30571313,84249.0,84248.0,0.32334439]
[1741995905221,0.32432654,84249.0,84248.0,0.33788524]
[1741995906230,0.30571313,84249.0,84248.0,0.41838524]
[1741995906429,0.30571313,84249.0,84248.0,0.53146702]
[1741995906774,0.30571313,84249.0,84248.0,0.66638702]
[1741995908196,0.30571313,84249.0,84248.0,0.55330524]
[1741995909205,0.32432583,84249.0,84248.0,0.55330524]
[1741995912819,0.32432583,84249.0,84248.0,0.40651624]
[1741995913053,1.02506183,84249.0,84248.0,0.20896139]
[1741995913211,1.02206883,84249.0,84248.0,0.20896139]
[1741995913418,0.98954783,84249.0,84248.0,0.20896139]
[1741995914051,0.97767883,84249.0,84248.0,0.20896139]
[1741995916195,0.97763883,84249.0,84248.0,0.20896139]
[1741995918911,0.98950783,84249.0,84248.0,0.20896139]
[1741995919116,0.97763883,84249.0,84248.0,0.20896139]
[1741995919440,0.98950783,84249.0,84248.0,0.20896139]
[1741995919741,0.3,84241.0,84239.0,0.237417]
[1741995919945,0.59732009,84240.0,84239.0,0.37263274]
[1741995920163,0.30529809,84240.0,84239.0,0.38450274]
[1741995920748,0.31713187,84240.0,84239.0,0.38450274]
[1741995922942,0.31713187,84240.0,84239.0,0.34462785]
[1741995923545,0.30529809,84240.0,84239.0,0.34462785]
[1741995923905,0.30529809,84240.0,84239.0,0.42353964]
[1741995926116,0.0050961,84240.0,84239.0,0.42353964]
[1741995926325,0.00041389,84249.0,84248.0,0.249263]
[1741995926574,0.00041389,84249.0,84248.0,0.4043431]
[1741995926746,0.00041389,84249.0,84248.0,0.41888395]
[1741995928490,0.00041389,84249.0,84248.0,0.49279574]
[1741995930188,0.00041389,84249.0,84248.0,0.49296534]
[1741995930395,0.00075309,84249.0,84248.0,0.49296534]
[1741995930592,0.0003392,84258.0,84257.0,0.374337]
[1741995930802,0.0003392,84258.0,84257.0,0.59758964]
[1741995935083,0.0003392,84258.0,84257.0,0.60258964]
[1741995935646,0.0003392,84258.0,84257.0,0.58572164]
[1741995935844,0.0003392,84258.0,84257.0,0.44664079]
[1741995936279,0.0003392,84258.0,84257.0,0.57768702]
[1741995936487,0.0003392,84258.0,84257.0,0.56314617]
[1741995936772,0.0003392,84258.0,84257.0,0.57768702]
[1741995937499,0.0003392,84258.0,84257.0,0.65518702]
[1741995941348,0.3,84269.0,84264.0,0.249216]
[1741995941550,0.01911086,84265.0,84264.0,0.31769612]
[1741995941849,0.01203786,84265.0,84264.0,0.31769612]
[1741995942705,0.01203786,84265.0,84264.0,0.45281612]
[1741995945478,0.01203786,84265.0,84264.0,0.44094912]
[1741995946085,0.01203786,84265.0,84264.0,0.51470091]
[1741995946333,0.01203786,84265.0,84264.0,0.51474091]
[1741995946537,0.01910786,84265.0,84264.0,0.51474091]
[1741995946856,0.01203786,84265.0,84264.0,0.51474091]
[1741995949222,0.01203786,84265.0,84264.0,0.52660791]
[1741995950049,0.01203786,84265.0,84264.0,0.60930791]
[1741995951599,0.000339,84265.0,84264.0,0.60930791]
[1741995952427,0.01211183,84265.0,84264.0,0.60930791]
[1741995952839,0.000339,84265.0,84264.0,0.60930791]
[1741995954902,0.01211655,84265.0,84264.0,0.60930791]
[1741995955076,0.000339,84265.0,84264.0,0.60930791]
[1741995956885,0.000339,84265.0,84264.0,0.52660791]
[1741995957946,0.0122179,84265.0,84264.0,0.52660791]
[1741995958145,0.000339,84265.0,84264.0,0.52660791]
[1741995961760,0.01250048,84265.0,84264.0,0.52660791]
[1741995961959,0.000339,84265.0,84264.0,0.52660791]
[1741995962569,0.000339,84265.0,84264.0,0.46048164]
[1741995962770,0.000339,84265.0,84264.0,0.47234864]
[1741995963552,0.01198129,84265.0,84264.0,0.47234864]
[1741995963754,0.000339,84265.0,84264.0,0.47234864]
[1741995964635,0.00023967,84265.0,84264.0,0.47234864]
[1741995964918,0.01194396,84265.0,84264.0,0.5800721]
[1741995968869,0.01194396,84265.0,84264.0,0.47234864]
[1741995972510,0.01194396,84265.0,84264.0,0.55544864]
[1741995972658,0.00023967,84265.0,84264.0,0.59884864]
[1741995973263,0.01514215,84265.0,84264.0,0.59884864]
[1741995973486,0.00023967,84265.0,84264.0,0.59884864]
[1741995973692,0.00023967,84265.0,84264.0,0.71146905]
[1741995975554,0.01535371,84265.0,84264.0,0.71146905]
[1741995976637,0.00023967,84265.0,84264.0,0.71146905]
[1741995976980,0.00019967,84265.0,84264.0,0.71146905]
[1741995977823,0.02229056,84265.0,84264.0,0.71146905]
[1741995981595,0.02229056,84265.0,84264.0,0.57678905]
[1741995981740,0.02229056,84265.0,84264.0,0.71166905]
[1741995982629,0.02229056,84265.0,84264.0,0.71666905]
[1741995982989,0.02229056,84265.0,84264.0,0.70480205]
[1741995983569,0.00019967,84265.0,84264.0,0.70480205]
[1741995983969,0.00019967,84265.0,84264.0,0.71666905]
[1741995987160,0.3,84279.0,84274.0,0.0828]
[1741995987364,0.00684101,84278.0,84276.0,0.01454085]
[1741995988270,0.02145662,84278.0,84276.0,0.01454085]
[1741995988467,0.02145662,84278.0,84276.0,0.01459987]
[1741995989052,0.17354151,84280.0,84276.0,0.01459987]
[1741995989248,0.17354151,84286.0,84278.0,0.01454085]
[1741995989449,0.17354151,84286.0,84282.0,0.01454085]
[1741995989673,0.01499056,84284.0,84283.0,0.25183585]
[1741995989873,0.0003392,84284.0,84283.0,0.25183585]
[1741995990211,0.0003392,84284.0,84283.0,0.42251197]
[1741995990410,0.0003392,84284.0,84283.0,0.530223]
[1741995990562,0.0003392,84284.0,84283.0,0.542087]
[1741995991196,0.0003392,84284.0,84283.0,0.287928]
[1741995993162,0.0003392,84284.0,84283.0,0.292928]
[1741995993979,0.0003392,84284.0,84283.0,0.427728]
[1741995994312,0.0003392,84284.0,84283.0,0.439592]
[1741995995197,0.0003392,84284.0,84283.0,0.427728]
[1741995996449,0.0003392,84284.0,84283.0,0.439592]
[1741996001529,0.17354151,84310.0,84299.0,0.01454085]
[1741996001676,0.17354151,84310.0,84301.0,0.01454085]
[1741996001877,0.00579564,84309.0,84301.0,0.01454085]
[1741996002119,0.17354151,84310.0,84301.0,0.01454085]
[1741996003123,0.136087,84309.0,84301.0,0.01454085]
[1741996003327,0.412497,84309.0,84301.0,0.01454085]
[1741996003562,0.00579251,84308.0,84303.0,0.01454085]
[1741996004523,0.00579251,84308.0,84301.0,0.01454085]
[1741996004724,0.00579251,84308.0,84301.0,0.01459987]
[1741996005425,0.360061,84306.0,84303.0,0.01454085]
[1741996005641,0.060061,84306.0,84303.0,0.01454085]
[1741996005836,0.0002898,84305.0,84303.0,0.03681205]
[1741996006685,0.0824,84307.0,84303.0,0.03681205]
[1741996006884,0.00574084,84304.0,84303.0,0.03681205]
[1741996007085,0.011861,84306.0,84303.0,0.0222712]
[1741996007289,0.00555574,84304.0,84303.0,0.13432]
[1741996007561,0.011861,84304.0,84303.0,0.13432]
[1741996007775,0.0824,84301.0,84279.0,0.0001695]
[1741996007957,0.237326,84272.0,84265.0,0.07371212]
[1741996008157,0.249194,84272.0,84265.0,0.07371212]
[1741996008383,0.24286679,84271.0,84265.0,0.0737563]
[1741996008659,0.24286679,84271.0,84265.0,4.418e-05]
[1741996008660,0.311867,84266.0,84265.0,4.418e-05]
[1741996008872,0.3,84266.0,84265.0,0.13476418]
[1741996009018,0.30599169,84266.0,84265.0,0.02424375]
[1741996009224,0.30599169,84266.0,84265.0,0.13476418]
[1741996009434,0.30603772,84266.0,84265.0,0.13476418]
[1741996009827,0.00603772,84266.0,84265.0,4.418e-05]
[1741996010050,0.00603772,84266.0,84265.0,0.13472418]
[1741996010231,0.00603772,84266.0,84265.0,0.15891974]
[1741996012429,0.00603772,84266.0,84265.0,0.13472418]
[1741996013257,0.30603772,84266.0,84265.0,0.13472418]
[1741996013441,0.00603772,84266.0,84265.0,0.13472418]
[1741996014970,0.00603772,84266.0,84265.0,4.418e-05]
[1741996015150,0.00612271,84266.0,84265.0,0.13472418]
[1741996015350,0.00605761,84266.0,84265.0,0.20560171]
[1741996019177,0.00605761,84266.0,84265.0,0.18472418]
[1741996020434,0.00605761,84266.0,84265.0,0.19926503]
[1741996020846,0.011866,84272.0,84266.0,0.01454085]
[1741996021008,0.3,84270.0,84266.0,0.01454085]
[1741996021207,0.3,84268.0,84266.0,0.01454085]
[1741996021406,0.3,84268.0,84267.0,0.04187246]
[1741996022263,0.00895324,84273.0,84268.0,0.01454085]
[1741996022693,0.3,84274.0,84268.0,0.01454085]
[1741996023523,0.3,84272.0,84268.0,0.01454085]
[1741996024012,0.3,84272.0,84268.0,0.01471035]
[1741996024151,0.00595578,84271.0,84268.0,0.01471035]
[1741996024357,0.00595578,84271.0,84270.0,0.01454085]
[1741996025067,0.3,84274.0,84270.0,0.08825297]
[1741996025267,0.00585535,84271.0,84270.0,0.08825297]
[1741996025474,0.3,84274.0,84270.0,0.08825297]
[1741996025671,0.00585535,84271.0,84270.0,0.08825297]
[1741996025874,0.3,84274.0,84270.0,0.1205871]
[1741996026078,0.0058556,84271.0,84270.0,0.1205871]
[1741996026481,0.3,84274.0,84270.0,0.1205871]
[1741996026697,0.0058556,84271.0,84270.0,0.1205871]
[1741996026943,0.3,84274.0,84270.0,0.1205871]
[1741996027138,0.00585531,84271.0,84270.0,0.1205871]
[1741996027319,0.3,84274.0,84270.0,0.1205871]
[1741996027519,0.3,84274.0,84272.0,0.01454085]
[1741996031136,0.3,84274.0,84273.0,0.08825297]
[1741996031346,1.3,84274.0,84273.0,0.08825297]
[1741996037700,1.29996,84274.0,84273.0,0.08825297]
[1741996038988,1.30581944,84274.0,84273.0,0.08825297]
[1741996039208,1.30581944,84274.0,84273.0,0.10565279]
[1741996039748,1.12356244,84274.0,84273.0,0.10565279]
[1741996041295,1.12356244,84274.0,84273.0,0.18325279]
[1741996041296,0.00585944,84274.0,84273.0,0.18325279]
[1741996041419,0.000339,84279.0,84274.0,0.25186185]
[1741996041621,0.000339,84279.0,84274.0,0.01454085]
[1741996041832,0.00597259,84278.0,84277.0,0.25185185]
[1741996042238,0.000339,84279.0,84278.0,0.01454085]
[1741996042441,0.000339,84279.0,84278.0,0.17771797]
[1741996042651,0.000339,84279.0,84278.0,0.17890429]
[1741996042877,0.17353499,84290.0,84283.0,0.237294]
[1741996043086,0.17353499,84290.0,84285.0,0.01454085]
[1741996043285,0.00601406,84289.0,84288.0,0.01454085]
[1741996043488,0.17353499,84290.0,84288.0,0.01454085]
[1741996043829,0.17353499,84290.0,84287.0,0.25182285]
[1741996044028,0.17353499,84290.0,84286.0,0.237286]
[1741996044243,0.17353499,84290.0,84287.0,0.08960117]
[1741996044775,0.00601669,84289.0,84287.0,0.08960117]
[1741996045203,0.17353499,84290.0,84287.0,0.08960117]
[1741996045608,0.00601669,84289.0,84287.0,0.08960117]
[1741996046028,0.17353499,84290.0,84287.0,0.08960117]
[1741996046199,0.47353499,84290.0,84289.0,0.01454085]
[1741996047645,0.3,84289.0,84285.0,0.01454085]
[1741996048570,0.3,84289.0,84287.0,0.01454085]
[1741996048772,0.17353499,84290.0,84287.0,0.01454085]
[1741996050521,0.3,84289.0,84287.0,0.01454085]
[1741996050700,0.25,84289.0,84288.0,0.09105636]